fUSD/lending_fUSD_20240518
["ID","MTS","AMOUNT","RATE_DAILY","PERIOD"]
[327341923,1715998252340,-512.30352157,0.00043835,30]
[327341924,1715998252350,-509.03948775,0.00043835,30]
[327341925,1715998252360,-500.0,0.00043835,30]
[327341926,1715998252368,-539.1302391,0.00043835,30]
[327341927,1715998252377,-628.54762025,0.00043835,30]
[327341928,1715998252386,-562.83460306,0.00043835,30]
[327341929,1715998252395,-503.03550678,0.00043835,30]
[327341930,1715998252404,-500.0,0.00043835,30]
[327341931,1715998252413,-540.57824379,0.00043835,30]
[327341932,1715998252422,-157.06454689,0.00043835,30]
[327341933,1715998252432,-602.67382785,0.00043835,30]
[327341934,1715998252441,-304.90683014,0.00043835,30]
[327341935,1715998252449,-633.4518482,0.00043835,30]
[327341936,1715998252459,-500.0,0.00043835,30]
[327341937,1715998252468,-560.42328614,0.00043835,30]
[327341938,1715998252477,-533.22463627,0.00043835,30]
[327341939,1715998252486,-533.52576203,0.00043835,30]
[327341940,1715998252495,-586.22021261,0.00043835,30]
[327341941,1715998252510,-500.0,0.00043835,30]
[327341942,1715998252521,-500.0,0.00043835,30]
[327341943,1715998252532,-500.0,0.00043835,30]
[327341944,1715998252544,-549.00083482,0.00043835,30]
[327341945,1715998252553,-483.85821629,0.00043835,30]
[327341946,1715998252564,-1000.0,0.00043835,30]
[327341947,1715998252573,-571.33395372,0.00043835,21]
[327341948,1715998252585,-540.06827967,0.00043835,30]
[327341949,1715998252594,-541.82732962,0.00043835,30]
[327341950,1715998252605,-500.0,0.00043835,30]
[327341951,1715998252614,-500.0,0.00043835,30]
[327341952,1715998252625,-476.94927956,0.00043835,30]
[327341953,1715998252635,-500.0,0.00043835,30]
[327341954,1715998252643,-500.0,0.00043835,30]
[327341955,1715998252654,-500.0,0.00043835,30]
[327341956,1715998252663,-500.0,0.00043835,30]
[327341957,1715998252672,-530.76569336,0.00043835,30]
[327341958,1715998252682,-319.15814441,0.00043835,30]
[327341959,1715998252691,-500.0,0.00043835,30]
[327341960,1715998252700,-500.0,0.00043835,30]
[327341961,1715998252711,-514.37286379,0.00043835,30]
[327341962,1715998252721,-622.3444701,0.00043835,30]
[327341963,1715998252731,-500.0,0.00043835,30]
[327341964,1715998252741,-500.0,0.00043835,30]
[327341965,1715998252751,-619.09539125,0.00043835,30]
[327341966,1715998252763,-600.18074127,0.00043835,30]
[327341967,1715998252772,-500.0,0.00043835,30]
[327341968,1715998252782,-500.0,0.00043835,30]
[327341969,1715998252791,-567.24424336,0.00043835,30]
[327341970,1715998252800,-500.0,0.00043835,30]
[327341971,1715998252809,-576.6564423,0.00043835,30]
[327341972,1715998252818,-524.44228885,0.00043835,30]
[327341973,1715998252827,-500.0,0.00043835,30]
[327341974,1715998252836,-222.0847216,0.00043835,30]
[327341975,1715998252845,-524.44671853,0.00043835,30]
[327341976,1715998252854,-442.84715716,0.00043835,30]
[327341977,1715998252863,-500.0,0.00043835,30]
[327341978,1715998252872,-500.0,0.00043835,30]
[327341979,1715998252881,-590.47987622,0.00043835,30]
[327341980,1715998252890,-500.0,0.00043835,30]
[327341981,1715998252899,-500.0,0.00043835,30]
[327341982,1715998252909,-500.0,0.00043835,30]
[327341983,1715998252918,-500.0,0.00043835,30]
[327341984,1715998252927,-572.6563337,0.00043835,30]
[327341985,1715998252936,-500.0,0.00043835,30]
[327341986,1715998252945,-615.5918145,0.00043835,30]
[327341987,1715998252954,-506.660799,0.00043835,30]
[327341988,1715998252963,-500.0,0.00043835,30]
[327341989,1715998252973,-526.4796293,0.00043835,30]
[327341990,1715998252982,-556.28386874,0.00043835,30]
[327341991,1715998252990,-500.0,0.00043835,30]
[327341992,1715998253000,-539.40040855,0.00043835,30]
[327341993,1715998253009,-500.0,0.00043835,30]
[327341994,1715998253019,-524.05857985,0.00043835,30]
[327341995,1715998253028,-500.0,0.00043835,30]
[327341996,1715998253037,-518.74922167,0.00043835,30]
[327341997,1715998253046,-500.0,0.00043835,30]
[327341998,1715998253055,-542.08251856,0.00043835,30]
[327341999,1715998253064,-500.0,0.00043835,30]
[327342000,1715998253073,-500.0,0.00043835,30]
[327342001,1715998253083,-510.706021,0.00043835,30]
[327342002,1715998253091,-538.71194004,0.00043835,30]
[327342003,1715998253100,-573.57004157,0.00043835,30]
[327342004,1715998253110,-517.9051569,0.00043835,30]
[327342005,1715998253119,-500.0,0.00043835,30]
[327342006,1715998253129,-500.0,0.00043835,30]
[327342007,1715998253138,-500.0,0.00043835,30]
[327342008,1715998253147,-566.45219853,0.00043835,30]
[327342009,1715998253156,-594.77924573,0.00043835,30]
[327342010,1715998253165,-583.22082009,0.00043835,30]
[327342011,1715998253174,-500.0,0.00043835,30]
[327342012,1715998253183,-522.9128197,0.00043835,30]
[327342013,1715998253192,-500.0,0.00043835,30]
[327342014,1715998253201,-497.39269565,0.00043835,30]
[327342015,1715998253211,-554.68420569,0.00043835,30]
[327342016,1715998253220,-530.30961562,0.00043835,30]
[327342017,1715998253229,-558.36876831,0.00043835,30]
[327342018,1715998253238,-544.67100758,0.00043835,30]
[327342019,1715998253247,-613.50792789,0.00043835,30]
[327342020,1715998253256,-513.24522793,0.00043835,30]
[327342021,1715998253266,-562.72080337,0.00043835,30]
[327342022,1715998253275,-500.0,0.00043835,30]
[327342023,1715998253283,-340.13558821,0.00043835,30]
[327342024,1715998253292,-480.14938666,0.00043835,30]
[327342025,1715998253301,-530.63267337,0.00043835,30]
[327342026,1715998253310,-245.65437203,0.00043835,30]
[327342027,1715998253320,-562.86803791,0.00043835,30]
[327342028,1715998253328,-525.35116321,0.00043835,30]
[327342029,1715998253338,-500.0,0.00043835,30]
[327342030,1715998253346,-588.44494135,0.00043835,30]
[327342031,1715998253355,-513.77939917,0.00043835,30]
[327342032,1715998253365,-500.0,0.00043835,30]
[327342033,1715998253374,-500.0,0.00043835,30]
[327342034,1715998253383,-640.51126757,0.00043835,30]
[327342035,1715998253392,-500.0,0.00043835,30]
[327342036,1715998253402,-500.0,0.00043835,30]
[327342037,1715998253412,-460.08235586,0.00043835,30]
[327342038,1715998253422,-500.0,0.00043835,30]
[327342039,1715998253432,-519.36808383,0.00043835,30]
[327342040,1715998253442,-500.0,0.00043836,14]
[327342041,1715998253452,-1000.0,0.00043902,120]
[327342042,1715998253461,-200.07719303,0.0004392,60]
[327342043,1715998253470,-44673.59717555,0.00044,2]
[327342044,1715998253479,-300.0,0.00044,120]
[327342045,1715998253488,-1666.545811,0.00044,44]
[327342046,1715998253498,-150.0,0.00044006,120]
[327342047,1715998253509,-1035.0,0.00044042,30]
[327342048,1715998253519,-500.0,0.00044109,31]
[327342049,1715998253528,-533.56319442,0.00044109,31]
[327342050,1715998253538,-523.10641528,0.00044109,31]
[327342051,1715998253548,-523.19377264,0.00044109,31]
[327342052,1715998253557,-500.0,0.00044109,31]
[327342053,1715998253567,-530.77049961,0.00044109,31]
[327342054,1715998253578,-511.94081783,0.00044109,31]
[327342055,1715998253588,-516.43500076,0.00044109,31]
[327342056,1715998253597,-290.3206147,0.00044109,31]
[327342057,1715998253607,-627.01920388,0.00044109,31]
[327342058,1715998253615,-500.0,0.00044109,31]
[327342059,1715998253624,-500.0,0.00044109,31]
[327342060,1715998253634,-170.6904483,0.00044109,31]
[327342061,1715998253644,-514.97930369,0.00044109,31]
[327342062,1715998253740,-507.4022884,0.00044109,31]
[327342063,1715998253761,-500.0,0.00044109,31]
[327342064,1715998253771,-500.0,0.00044109,31]
[327342065,1715998253780,-528.07869332,0.00044109,31]
[327342066,1715998253790,-510.02428946,0.00044109,31]
[327342067,1715998253800,-507.66575095,0.00044109,31]
[327342068,1715998253811,-513.47773744,0.00044109,31]
[327342069,1715998253822,-511.08311923,0.00044109,31]
[327342070,1715998253833,-500.0,0.00044109,31]
[327342071,1715998253842,-578.40748365,0.00044109,31]
[327342072,1715998253851,-510.21400194,0.00044109,31]
[327342073,1715998253860,-500.0,0.00044109,31]
[327342074,1715998253869,-511.63072463,0.00044109,31]
[327342075,1715998253878,-502.09882493,0.00044109,31]
[327342076,1715998253887,-500.0,0.00044109,31]
[327342077,1715998253896,-514.61591853,0.00044109,31]
[327342078,1715998253905,-519.35941664,0.00044109,31]
[327342079,1715998253914,-634.71196884,0.00044109,31]
[327342080,1715998253924,-500.0,0.00044109,31]
[327342081,1715998253933,-500.0,0.00044109,31]
[327342082,1715998253942,-152.23329725,0.00044109,31]
[327342083,1715998253952,-528.09120772,0.00044109,31]
[327342084,1715998253961,-500.0,0.00044109,31]
[327342085,1715998253970,-506.69750178,0.00044109,31]
[327342086,1715998253979,-500.0,0.00044109,31]
[327342087,1715998253989,-500.0,0.00044109,31]
[327342088,1715998253999,-521.73174197,0.00044109,30]
[327342089,1715998254009,-527.14417228,0.00044109,31]
[327342090,1715998254019,-500.0,0.00044109,31]
[327342091,1715998254028,-545.15469656,0.00044109,31]
[327342092,1715998254038,-500.0,0.00044109,31]
[327342093,1715998254047,-500.0,0.00044109,31]
[327342094,1715998254058,-537.2948409,0.00044109,31]
[327342095,1715998254067,-500.0,0.00044109,31]
[327342096,1715998254077,-509.08455458,0.00044109,31]
[327342097,1715998254090,-544.74515483,0.00044109,31]
[327342098,1715998254099,-545.35693885,0.00044109,31]
[327342099,1715998254108,-508.99598551,0.00044109,31]
[327342100,1715998254117,-507.75027938,0.00044109,31]
[327342101,1715998254127,-514.65916113,0.00044109,31]
[327342102,1715998254136,-511.67375207,0.00044109,31]
[327342103,1715998254145,-508.46456459,0.00044109,31]
[327342104,1715998254154,-500.0,0.00044109,31]
[327342105,1715998254164,-500.0,0.00044109,31]
[327342106,1715998254174,-165.31600262,0.00044109,31]
[327342107,1715998254183,-508.59796781,0.00044109,31]
[327342108,1715998254193,-351.18120098,0.00044109,31]
[327342109,1715998254202,-500.0,0.00044109,31]
[327342110,1715998254212,-552.53221428,0.00044109,31]
[327342111,1715998254221,-500.0,0.00044109,31]
[327342112,1715998254231,-505.54518546,0.00044109,30]
[327342113,1715998254239,-517.28696638,0.00044109,31]
[327342114,1715998254249,-504.27972237,0.00044109,31]
[327342115,1715998254259,-515.87208799,0.00044109,31]
[327342116,1715998254268,-540.10185031,0.00044109,31]
[327342117,1715998254277,-239.37650192,0.00044109,31]
[327342118,1715998254287,-528.54939025,0.00044109,31]
[327342119,1715998254296,-513.73752485,0.00044109,31]
[327342120,1715998254305,-500.0,0.00044109,31]
[327342121,1715998254315,-335.28585918,0.00044109,31]
[327342122,1715998254324,-517.79578125,0.00044109,31]
[327342123,1715998254337,-524.19002869,0.00044109,31]
[327342124,1715998254346,-597.99521699,0.00044109,31]
[327342125,1715998254355,-536.0626053,0.00044109,31]
[327342126,1715998254364,-511.20654305,0.00044109,31]
[327342127,1715998254374,-529.81045303,0.00044109,31]
[327342128,1715998254383,-519.22124483,0.00044109,31]
[327342129,1715998254392,-512.43344678,0.00044109,31]
[327342130,1715998254402,-540.51115678,0.00044109,31]
[327342131,1715998254411,-507.82009188,0.00044109,31]
[327342132,1715998254420,-540.50681028,0.00044109,31]
[327342133,1715998254429,-501.38380321,0.00044109,31]
[327342134,1715998254438,-510.07888927,0.00044109,31]
[327342135,1715998254448,-509.7466196,0.00044109,31]
[327342136,1715998254457,-513.64081654,0.00044109,31]
[327342137,1715998254466,-506.32418797,0.00044109,31]
[327342138,1715998254476,-500.0,0.00044109,31]
[327342139,1715998254485,-514.99040226,0.00044109,31]
[327342140,1715998254494,-511.61825501,0.00044109,31]
[327342141,1715998254510,-500.0,0.00044109,31]
[327342142,1715998254519,-518.1004714,0.00044109,31]
[327342143,1715998254529,-273.234324,0.00044109,31]
[327342144,1715998254538,-545.37424701,0.00044109,31]
[327342145,1715998254549,-508.6711924,0.00044109,31]
[327342146,1715998254558,-519.98450136,0.00044109,31]
[327342147,1715998254567,-507.07807317,0.00044109,31]
[327342148,1715998254577,-509.07913899,0.00044109,31]
[327342149,1715998254590,-500.0,0.00044109,31]
[327342150,1715998254599,-500.0,0.00044109,31]
[327342151,1715998254609,-509.22305882,0.00044109,31]
[327342152,1715998254618,-512.79135496,0.00044109,31]
[327342153,1715998254628,-501.50576032,0.00044109,31]
[327342154,1715998254637,-507.24336719,0.00044109,31]
[327342155,1715998254647,-527.74979585,0.00044109,31]
[327342156,1715998254656,-510.69868476,0.00044109,31]
[327342157,1715998254665,-510.00342174,0.00044109,31]
[327342158,1715998254674,-508.23744824,0.00044109,31]
[327342159,1715998254684,-500.0,0.00044109,31]
[327342160,1715998254693,-507.68107885,0.00044109,31]
[327342161,1715998254703,-530.91186083,0.00044109,31]
[327342162,1715998254712,-508.30178596,0.00044109,31]
[327342163,1715998254722,-514.80536767,0.00044109,31]
[327342164,1715998254731,-526.12239604,0.00044109,31]
[327342165,1715998254740,-504.89975089,0.00044109,31]
[327342166,1715998254749,-210.95472933,0.00044109,31]
[327342167,1715998254759,-507.28397334,0.00044109,31]
[327342168,1715998254768,-287.76004597,0.00044109,31]
[327342169,1715998254778,-510.62368598,0.00044109,31]
[327342170,1715998254787,-506.75596115,0.00044109,31]
[327342171,1715998254798,-509.70695309,0.00044109,31]
[327342172,1715998254807,-522.29528073,0.00044109,31]
[327342173,1715998254817,-500.0,0.00044109,30]
[327342174,1715998254828,-508.62525536,0.00044109,31]
[327342175,1715998254840,-538.32544271,0.00044109,31]
[327342176,1715998254850,-509.57878194,0.00044109,31]
[327342177,1715998254859,-541.53739084,0.00044109,31]
[327342178,1715998254869,-421.37498492,0.00044109,31]
[327342179,1715998254879,-510.72110541,0.00044109,31]
[327342180,1715998254888,-515.09665699,0.00044109,31]
[327342181,1715998254898,-507.48413713,0.00044109,31]
[327342182,1715998254907,-521.53055659,0.00044109,31]
[327342183,1715998254916,-505.3105586,0.00044109,31]
[327342184,1715998254925,-513.00385278,0.00044109,31]
[327342185,1715998254935,-520.26766245,0.00044109,31]
[327342186,1715998254944,-506.90046254,0.00044109,31]
[327342187,1715998254954,-518.24352714,0.00044109,31]
[327342188,1715998254963,-500.0,0.00044109,31]
[327342189,1715998254972,-516.7790574,0.00044109,31]
[327342190,1715998254982,-510.55076001,0.00044109,31]
[327342191,1715998254992,-536.90413871,0.00044109,31]
[327342192,1715998255001,-530.0848587,0.00044109,31]
[327342193,1715998255011,-519.94601197,0.00044109,31]
[327342194,1715998255020,-534.11690487,0.00044109,31]
[327342195,1715998255030,-509.49286539,0.00044109,31]
[327342196,1715998255039,-535.44240375,0.00044109,31]
[327342197,1715998255049,-536.12584684,0.00044109,31]
[327342198,1715998255059,-516.79175749,0.00044109,31]
[327342199,1715998255068,-518.83529618,0.00044109,31]
[327342200,1715998255078,-521.12373933,0.00044109,31]
[327342201,1715998255090,-520.44023306,0.00044109,31]
[327342202,1715998255099,-615.33313944,0.00044109,31]
[327342203,1715998255108,-518.53427479,0.00044109,31]
[327342204,1715998255118,-516.69506022,0.00044109,31]
[327342205,1715998255127,-518.66972259,0.00044109,31]
[327342206,1715998255137,-512.05549153,0.00044109,31]
[327342207,1715998255148,-521.64864437,0.00044109,31]
[327342208,1715998255157,-151.0,0.00044109,14]
[327342209,1715998255166,-151.0,0.00044109,14]
[327342210,1715998255175,-508.56770211,0.00044109,31]
[327342211,1715998255184,-510.50643114,0.00044109,31]
[327342212,1715998255194,-262.6930109,0.00044109,31]
[327342213,1715998255203,-516.91801547,0.00044109,31]
[327342214,1715998255212,-527.90007377,0.00044109,31]
[327342215,1715998255222,-524.26481522,0.00044109,31]
[327342216,1715998255231,-398.34818722,0.00044109,31]
[327342217,1715998255240,-524.56321095,0.00044109,31]
[327342218,1715998255249,-501.84778623,0.00044109,31]
[327342219,1715998255259,-537.87252456,0.00044109,31]
[327342220,1715998255268,-528.51139927,0.00044109,31]
[327342221,1715998255277,-151.0,0.00044109,14]
[327342222,1715998255286,-508.78198913,0.00044109,31]
[327342223,1715998255295,-518.59471064,0.00044109,31]
[327342224,1715998255304,-559.41980453,0.00044109,31]
[327342225,1715998255313,-570.49901502,0.00044109,31]
[327342226,1715998255322,-523.48192915,0.00044109,31]
[327342227,1715998255333,-159.15736677,0.00044109,31]
[327342228,1715998255342,-551.21448765,0.00044109,31]
[327342229,1715998255351,-537.53786491,0.00044109,31]
[327342230,1715998255364,-519.48997475,0.00044109,31]
[327342231,1715998255373,-528.1787316,0.00044109,31]
[327342232,1715998255382,-526.82807038,0.00044109,31]
[327342233,1715998255391,-285.30569654,0.00044109,31]
[327342234,1715998255400,-523.45233208,0.00044109,31]
[327342235,1715998255409,-151.0,0.00044109,14]
[327342236,1715998255419,-391.08155535,0.00044109,31]
[327342237,1715998255428,-151.0,0.00044109,14]
[327342238,1715998255437,-215.07696064,0.00044109,31]
[327342239,1715998255446,-521.96906494,0.00044109,31]
[327342240,1715998255455,-151.0,0.00044109,14]
[327342241,1715998255464,-461.13060822,0.00044109,31]
[327342242,1715998255473,-591.25484576,0.00044109,31]
[327342243,1715998255483,-151.0,0.00044109,14]
[327342244,1715998255493,-500.0,0.00044109,31]
[327342245,1715998255508,-153.30211166,0.00044109,31]
[327342246,1715998255518,-378.37707195,0.00044109,31]
[327342247,1715998255527,-165.055615,0.00044109,14]
[327342248,1715998255536,-151.0,0.00044109,2]
[327342249,1715998255547,-500.0,0.00044109,31]
[327342250,1715998255558,-294.37451916,0.00044109,31]
[327342251,1715998255567,-156.20502471,0.00044109,31]
[327342252,1715998255576,-500.0,0.00044109,31]
[327342253,1715998255588,-1000.0,0.00044109,30]
[327342254,1715998255598,-560.66140122,0.00044109,31]
[327342255,1715998255608,-151.0,0.00044109,14]
[327342256,1715998255617,-500.0,0.00044109,31]
[327342257,1715998255626,-151.0,0.00044109,14]
[327342258,1715998255635,-500.0,0.00044109,31]
[327342259,1715998255645,-500.0,0.00044109,31]
[327342260,1715998255654,-300.14574332,0.00044109,31]
[327342261,1715998255663,-500.0,0.00044109,31]
[327342262,1715998255673,-500.0,0.00044109,31]
[327342263,1715998255682,-500.0,0.00044109,31]
[327342264,1715998255691,-500.0,0.00044109,31]
[327342265,1715998255701,-500.0,0.00044109,31]
[327342266,1715998255711,-500.0,0.00044109,31]
[327342267,1715998255720,-241.36501559,0.00044109,31]
[327342268,1715998255729,-500.0,0.00044109,31]
[327342269,1715998255738,-166.59810097,0.00044109,31]
[327342270,1715998255747,-500.0,0.00044109,31]
[327342271,1715998255757,-500.0,0.00044109,31]
[327342272,1715998255767,-150.89717215,0.00044109,31]
[327342273,1715998255776,-500.0,0.00044109,31]
[327342274,1715998255785,-500.0,0.00044109,31]
[327342275,1715998255794,-500.0,0.00044109,31]
[327342276,1715998255803,-183.39398749,0.00044109,31]
[327342277,1715998255812,-500.0,0.00044109,31]
[327342278,1715998255822,-547.20687202,0.00044109,31]
[327342279,1715998255832,-151.0,0.00044109,14]
[327342280,1715998255841,-163.94737483,0.00044109,31]
[327342281,1715998255850,-500.0,0.00044109,31]
[327342282,1715998255859,-500.0,0.00044109,31]
[327342283,1715998255868,-570.90368438,0.00044109,31]
[327342284,1715998255878,-500.0,0.00044109,31]
[327342285,1715998255887,-500.0,0.00044109,31]
[327342286,1715998255897,-527.55010997,0.00044109,31]
[327342287,1715998255906,-163.011796,0.00044109,14]
[327342288,1715998255916,-163.011796,0.00044109,14]
[327342289,1715998255925,-500.0,0.00044109,31]
[327342290,1715998255934,-518.25303727,0.00044109,31]
[327342291,1715998255943,-204.17919972,0.00044109,31]
[327342292,1715998255952,-500.0,0.00044109,31]
[327342293,1715998255962,-500.0,0.00044109,31]
[327342294,1715998255971,-530.40136279,0.00044109,31]
[327342295,1715998255979,-544.76948989,0.00044109,31]
[327342296,1715998255988,-1231.99535304,0.00044142,30]
[327342297,1715998255997,-500.0,0.00044142,30]
[327342298,1715998256006,-4300.0,0.00044142,30]
[327342299,1715998256015,-723.78090479,0.00044142,30]
[327342300,1715998256025,-4500.0,0.00044142,30]
[327342301,1715998256035,-354.61752329,0.00044383,32]
[327342302,1715998256044,-500.0,0.00044383,32]
[327342303,1715998256053,-591.27171178,0.00044383,32]
[327342304,1715998256062,-500.0,0.00044383,32]
[327342305,1715998256071,-517.64405662,0.00044383,32]
[327342306,1715998256082,-508.86228467,0.00044383,32]
[327342307,1715998256091,-565.76385678,0.00044383,32]
[327342308,1715998256100,-517.16341607,0.00044383,32]
[327342309,1715998256109,-518.49830802,0.00044383,32]
[327342310,1715998256118,-521.65945298,0.00044383,32]
[327342311,1715998256127,-515.0539211,0.00044383,32]
[327342312,1715998256229,-221.81023322,0.00044383,32]
[327342313,1715998256239,-483.24601169,0.00044383,32]
[327342314,1715998256247,-432.88970435,0.00044383,32]
[327342315,1715998256256,-513.13941838,0.00044383,32]
[327342316,1715998256265,-522.12295092,0.00044383,32]
[327342317,1715998256274,-509.24046627,0.00044383,32]
[327342318,1715998256283,-521.32347725,0.00044383,32]
[327342319,1715998256292,-506.6538685,0.00044383,32]
[327342320,1715998256301,-500.0,0.00044383,32]
[327342321,1715998256312,-508.69542304,0.00044383,32]
[327342322,1715998256321,-513.58694906,0.00044383,32]
[327342323,1715998256330,-630.70375269,0.00044383,32]
[327342324,1715998256340,-500.0,0.00044383,32]
[327342325,1715998256349,-649.17174861,0.00044383,32]
[327342326,1715998256358,-500.0,0.00044383,32]
[327342327,1715998256367,-504.55830482,0.00044383,30]
[327342328,1715998256376,-151.0,0.00044383,14]
[327342329,1715998256385,-200.40347205,0.00044383,32]
[327342330,1715998256394,-151.0,0.00044383,14]
[327342331,1715998256403,-500.0,0.00044383,32]
[327342332,1715998256411,-500.0,0.00044383,32]
[327342333,1715998256420,-543.03220328,0.00044383,32]
[327342334,1715998256429,-1037.15094732,0.00044383,30]
[327342335,1715998256439,-500.0,0.00044383,32]
[327342336,1715998256449,-500.0,0.00044383,32]
[327342337,1715998256460,-500.0,0.00044383,32]
[327342338,1715998256470,-552.88978133,0.00044383,32]
[327342339,1715998256480,-601.32467117,0.00044383,32]
[327342340,1715998256490,-538.74651841,0.00044383,32]
[327342341,1715998256499,-500.0,0.00044383,32]
[327342342,1715998256513,-544.49244347,0.00044383,32]
[327342343,1715998256522,-500.0,0.00044383,32]
[327342344,1715998256531,-592.87157969,0.00044383,32]
[327342345,1715998256540,-500.0,0.00044383,32]
[327342346,1715998256551,-609.49937487,0.00044383,32]
[327342347,1715998256561,-590.52618706,0.00044383,32]
[327342348,1715998256571,-183.86982401,0.00044383,32]
[327342349,1715998256583,-625.50794145,0.00044383,32]
[327342350,1715998256592,-567.71231914,0.00044383,32]
[327342351,1715998256600,-209.17886781,0.00044383,32]
[327342352,1715998256612,-500.0,0.00044383,32]
[327342353,1715998256621,-322.36805519,0.00044383,32]
[327342354,1715998256631,-500.0,0.00044383,32]
[327342355,1715998256640,-619.63400259,0.00044383,32]
[327342356,1715998256649,-500.0,0.00044383,32]
[327342357,1715998256659,-526.55641598,0.00044383,32]
[327342358,1715998256668,-308.57480746,0.00044383,32]
[327342359,1715998256678,-269.0,0.00044384,30]
[327342360,1715998256688,-882.0,0.00044384,120]
[327342361,1715998256698,-405.9,0.00044384,120]
[327342362,1715998256708,-157.051811,0.00044448,56]
[327342363,1715998256718,-200.0,0.00044648,120]
[327342364,1715998256727,-500.0,0.00044657,33]
[327342365,1715998256738,-500.0,0.00044657,33]
[327342366,1715998256749,-173.0282265,0.00044657,33]
[327342367,1715998256760,-305.77110184,0.00044657,33]
[327342368,1715998256769,-500.0,0.00044657,33]
[327342369,1715998256778,-500.0,0.00044657,33]
[327342370,1715998256786,-500.0,0.00044657,33]
[327342371,1715998256796,-297.72800282,0.00044657,33]
[327342372,1715998256808,-545.5249574,0.00044657,33]
[327342373,1715998256817,-525.80685473,0.00044657,33]
[327342374,1715998256827,-591.64021726,0.00044657,33]
[327342375,1715998256838,-461.92866924,0.00044657,33]
[327342376,1715998256847,-500.0,0.00044657,33]
[327342377,1715998256856,-489.33325562,0.00044657,33]
[327342378,1715998256865,-500.0,0.00044657,33]
[327342379,1715998256874,-380.91250248,0.00044657,33]
[327342380,1715998256883,-196.67413658,0.0004469,30]
[327342381,1715998256892,-2658.7311075,0.0004469,30]
[327342382,1715998256901,-2055.72405942,0.0004469,30]
[327342383,1715998256910,-200.0,0.00044738,120]
[327342384,1715998256920,-3944.75297171,0.00044792,19]
[327342385,1715998256929,-500.0,0.00044931,34]
[327342386,1715998256938,-249.19964578,0.00044931,34]
[327342387,1715998256947,-500.0,0.00044931,34]
[327342388,1715998256956,-349.5935,0.00044931,34]
[327342389,1715998256965,-500.0,0.00044931,34]
[327342390,1715998256975,-500.0,0.00044931,34]
[327342391,1715998256984,-5000.0,0.00044986,4]
[327342392,1715998256993,-567.1506185,0.00044998,120]
[327342393,1715998257002,-175.8070796,0.00044998,4]
[327342394,1715998257012,-7739.3052523,0.00045,120]
[327342395,1715998257021,-384.26829522,0.00045,15]
[327342396,1715998257030,-2661.43406406,0.00045,30]
[327342397,1715998257041,-2500.0,0.00045,120]
[327342398,1715998257051,-2758.0,0.00045,120]
[327342399,1715998257060,-550.0,0.00045,120]
[327342400,1715998257070,-151.0,0.00045,120]
[327342401,1715998257080,-409.9579361,0.00045,30]
[327342402,1715998257091,-190.22037928,0.00045,2]
[327342403,1715998257103,-315.33,0.00045,120]
[327342404,1715998257113,-151.0,0.00045,14]
[327342405,1715998257123,-151.0,0.00045,14]
[327342406,1715998257134,-151.0,0.00045,14]
[327342407,1715998257144,-254.359651,0.00045,14]
[327342408,1715998257153,-1000.0,0.00045102,120]
[327342409,1715998257163,-354.12,0.00045201,2]
[327342410,1715998257173,-500.0,0.00045205,35]
[327342411,1715998257182,-500.0,0.00045205,35]
[327342412,1715998257192,-500.0,0.00045205,35]
[327342413,1715998257201,-500.0,0.00045205,35]
[327342414,1715998257211,-215.0,0.000453,30]
[327342415,1715998257221,-151.0,0.00045333,2]
[327342416,1715998257231,-2262.5395,0.00045446,2]
[327342417,1715998257240,-157.051811,0.00045448,56]
[327342418,1715998257250,-500.0,0.00045479,36]
[327342419,1715998257259,-500.0,0.00045479,36]
[327342420,1715998257269,-592.28153951,0.00045479,36]
[327342421,1715998257278,-174.8759335,0.00045479,36]
[327342422,1715998257287,-150.0,0.000455,12]